fUSD/lending_fUSD_20240427
["ID","MTS","AMOUNT","RATE_DAILY","PERIOD"]
[323719760,1714192247802,-514.99630496,0.00012579,2]
[323719761,1714192247812,-509.03353802,0.00012579,2]
[323719762,1714192247821,-500.0,0.00012579,2]
[323719763,1714192247831,-500.0,0.00012579,2]
[323719764,1714192247840,-326.6347262,0.00012579,2]
[323719765,1714192247849,-302.66583645,0.00012579,2]
[323719766,1714192247859,-509.3979387,0.00012579,2]
[323719767,1714192247869,-518.6507521,0.00012579,2]
[323719768,1714192247878,-559.3,0.00012579,2]
[323719769,1714192247887,-504.95917132,0.00012579,2]
[323719770,1714192247896,-513.82804373,0.00012579,2]
[323719771,1714192247905,-512.04565338,0.00012579,2]
[323719772,1714192247914,-500.0,0.00012579,2]
[323719773,1714192247923,-216.42903763,0.00012579,2]
[323719774,1714192247932,-514.60922849,0.00012579,2]
[323719775,1714192247942,-521.81877644,0.00012579,2]
[323719776,1714192247951,-151.0,0.00012579,2]
[323719777,1714192247960,-151.0,0.00012579,2]
[323719778,1714192247969,-509.03734164,0.00012579,2]
[323719779,1714192247979,-510.88888819,0.00012579,2]
[323719780,1714192247988,-500.7879022,0.00012579,2]
[323719781,1714192247997,-500.0,0.00012579,2]
[323719782,1714192248006,-514.39328028,0.00012579,2]
[323719783,1714192248017,-517.12264894,0.00012579,2]
[323719784,1714192248026,-507.98830911,0.00012579,2]
[323719785,1714192248034,-500.0,0.00012579,2]
[323719786,1714192248043,-500.0,0.00012579,2]
[323719787,1714192248053,-507.05943696,0.00012579,2]
[323719788,1714192248062,-627.95595365,0.00012579,2]
[323719789,1714192248071,-511.50109671,0.00012579,2]
[323719790,1714192248080,-500.0,0.00012579,2]
[323719791,1714192248090,-504.87291167,0.00012579,2]
[323719792,1714192248099,-507.7754168,0.00012579,2]
[323719793,1714192248108,-511.59963815,0.00012579,2]
[323719794,1714192248118,-508.22762198,0.00012579,2]
[323719795,1714192248127,-500.0,0.00012579,2]
[323719796,1714192248136,-500.0,0.00012579,2]
[323719797,1714192248311,-512.72064409,0.00012579,2]
[323719798,1714192248321,-509.08721425,0.00012579,2]
[323719799,1714192248332,-400.0,0.00012579,2]
[323719800,1714192248341,-536.07007276,0.00012579,2]
[323719801,1714192248351,-521.19664024,0.00012579,2]
[323719802,1714192248360,-520.10929568,0.00012579,2]
[323719803,1714192248370,-504.47454897,0.00012579,2]
[323719804,1714192248379,-151.0,0.00012579,2]
[323719805,1714192248388,-151.0,0.00012579,2]
[323719806,1714192248397,-500.0,0.00012579,2]
[323719807,1714192248407,-500.0,0.00012579,2]
[323719808,1714192248416,-223.096615,0.00012579,2]
[323719809,1714192248426,-153.024073,0.00012579,2]
[323719810,1714192248435,-500.0,0.00012579,2]
[323719811,1714192248445,-151.0,0.00012579,2]
[323719812,1714192248455,-151.0,0.00012579,2]
[323719813,1714192248465,-151.0,0.00012579,2]
[323719814,1714192248476,-151.0,0.00012579,2]
[323719815,1714192248486,-509.12463278,0.00012579,2]
[323719816,1714192248497,-218.745073,0.00012579,2]
[323719817,1714192248507,-500.0,0.00012579,2]
[323719818,1714192248523,-500.0,0.00012579,2]
[323719819,1714192248533,-262.587848,0.00012579,2]
[323719820,1714192248543,-500.0,0.00012579,2]
[323719821,1714192248553,-500.0,0.00012579,2]
[323719822,1714192248562,-519.66195708,0.00012579,2]
[323719823,1714192248572,-1243.341401,0.00012579,2]
[323719824,1714192248581,-1243.341401,0.00012579,2]
[323719825,1714192248591,-500.0,0.00012579,2]
[323719826,1714192248600,-500.0,0.00012579,2]
[323719827,1714192248610,-500.0,0.00012579,2]
[323719828,1714192248619,-1243.341401,0.00012579,2]
[323719829,1714192248628,-500.0,0.00012579,2]
[323719830,1714192248638,-1243.341401,0.00012579,2]
[323719831,1714192248647,-500.0,0.00012579,2]
[323719832,1714192248656,-506.96828565,0.00012579,2]
[323719833,1714192248666,-151.0,0.00012579,2]
[323719834,1714192248676,-151.0,0.00012579,2]
[323719835,1714192248686,-500.0,0.00012579,2]
[323719836,1714192248696,-531.52814579,0.00012579,2]
[323719837,1714192248705,-441.36525942,0.00012579,2]
[323719838,1714192248715,-151.0,0.00012579,2]
[323719839,1714192248724,-151.0,0.00012579,2]
[323719840,1714192248734,-500.0,0.00012579,2]
[323719841,1714192248743,-151.0,0.00012579,2]
[323719842,1714192248753,-151.0,0.00012579,2]
[323719843,1714192248762,-151.0,0.00012579,2]
[323719844,1714192248775,-291.139574,0.00012579,2]
[323719845,1714192248784,-606.43625302,0.00012579,2]
[323719846,1714192248794,-522.45,0.00012579,2]
[323719847,1714192248803,-500.0,0.00012579,2]
[323719848,1714192248813,-500.0,0.00012579,2]
[323719849,1714192248822,-266.5231026,0.00012579,2]
[323719850,1714192248832,-500.0,0.00012579,2]
[323719851,1714192248841,-500.0,0.00012579,2]
[323719852,1714192248851,-500.0,0.00012579,2]
[323719853,1714192248860,-151.0,0.00012579,2]
[323719854,1714192248869,-251.736777,0.00012579,2]
[323719855,1714192248878,-151.0,0.00012579,2]
[323719856,1714192248888,-251.736777,0.00012579,2]
[323719857,1714192248897,-516.4567056,0.00012579,2]
[323719858,1714192248907,-251.736777,0.00012579,2]
[323719859,1714192248916,-251.736777,0.00012579,2]
[323719860,1714192248926,-510.0845752,0.00012579,2]
[323719861,1714192248935,-500.0,0.00012579,2]
[323719862,1714192248945,-453.78827583,0.00012579,2]
[323719863,1714192248954,-500.0,0.00012579,2]
[323719864,1714192248964,-500.0,0.00012579,2]
[323719865,1714192248973,-500.0,0.00012579,2]
[323719866,1714192248983,-500.0,0.00012579,2]
[323719867,1714192248992,-256.79674205,0.00012579,2]
[323719868,1714192249002,-500.0,0.00012579,2]
[323719869,1714192249011,-503.85903551,0.00012579,2]
[323719870,1714192249023,-535.77654467,0.00012579,2]
[323719871,1714192249034,-500.0,0.00012579,2]
[323719872,1714192249043,-500.0,0.00012579,2]
[323719873,1714192249053,-500.0,0.00012579,2]
[323719874,1714192249064,-500.0,0.00012579,2]
[323719875,1714192249073,-352.36410369,0.00012579,2]
[323719876,1714192249083,-151.0,0.00012579,2]
[323719877,1714192249094,-182.107901,0.00012579,2]
[323719878,1714192249104,-318.41478646,0.00012579,2]
[323719879,1714192249113,-500.0,0.00012579,2]
[323719880,1714192249123,-505.13848934,0.00012579,2]
[323719881,1714192249134,-500.0,0.00012579,2]
[323719882,1714192249143,-500.0,0.00012579,2]
[323719883,1714192249154,-507.99565028,0.00012579,2]
[323719884,1714192249163,-595.06837792,0.00012579,2]
[323719885,1714192249174,-500.0,0.00012579,2]
[323719886,1714192249185,-931.0,0.0001258,2]
[323719887,1714192249194,-107042.74479292,0.0001258,2]
[323719888,1714192249235,-8604.12022844,0.0001258,2]
[323719889,1714192249251,-3096.18912661,0.0001258,2]
[323719890,1714192249657,-150.0,0.00012472,2]
[323719891,1714192249668,-150.0,0.00012474,2]
[323719892,1714192249678,-150.0,0.00012493,2]
[323719893,1714192249688,-7.05263004,0.00012495,2]
[323719894,1714192249700,-142.94736996,0.00012495,2]
[323719895,1714192249709,-150.0,0.0001251,2]
[323719896,1714192249719,-150.0,0.00012519,2]
[323719897,1714192249729,-150.0,0.00012557,2]
[323719898,1714192249740,-150.0,0.00012558,2]
[323719899,1714192249750,-150.0,0.00012564,2]
[323719900,1714192249761,-150.0,0.00012566,2]
[323719901,1714192249773,-150.0,0.00012567,2]
[323719902,1714192249784,-12127.05263004,0.0001258,2]
[323719903,1714192249796,-444.24779552,0.0001258,2]
[323719904,1714192249807,-6589.80841682,0.0001258,2]
[323719905,1714192249820,-683.71913413,0.0001258,2]
[323719906,1714192250134,-355.24024923,0.00012577,2]
[323719907,1714192250144,-194.31699887,0.00012577,2]
[323719908,1714192250157,-305.68300113,0.00012577,2]
[323719909,1714192250167,-2725.31615215,0.0001258,2]
[323719910,1714192250303,-500.0,0.00012577,2]
[323719911,1714192250313,-2753.76341817,0.0001258,2]
[323719912,1714192250325,-6028.6047016,0.0001258,2]
[323719913,1714192387298,272.86,8.219e-05,2]
[323719914,1714192440164,20179.52552551,8.219e-05,2]
[323719915,1714192443194,943.51586166,8.219e-05,2]
[323719916,1714192446463,124859.40764506,8.219e-05,2]
[323719917,1714192446490,198584.18574971,8.219e-05,2]
[323719918,1714192446513,2515.27715904,8.219e-05,2]
[323719919,1714192456171,1965.54275978,8.219e-05,2]
[323719922,1714192457199,943.51586166,8.219e-05,2]
[323719924,1714192473206,943.51586166,8.219e-05,2]
[323719925,1714192493207,951.81048359,8.219e-05,2]
[323719926,1714193048004,-268.28302691,8.576e-05,2]
[323719927,1714193048026,-155.0,8.577e-05,2]
[323719928,1714193048048,-1193.39401008,8.577e-05,2]
[323719929,1714193048068,-155.0,8.578e-05,2]
[323719930,1714193048088,-33.32296301,8.582e-05,2]
[323719931,1714193125030,-163.79703699,8.582e-05,2]
[323719934,1714193175315,943.16052287,8.582e-05,2]
[323719959,1714193432085,-259.21,8.761e-05,2]
[323719960,1714193432097,-470.07945094,8.871e-05,2]
[323719961,1714193432109,-155.0,9.999e-05,2]
[323719962,1714193432119,-82.1451828,0.0001,2]
[323719963,1714193432152,-345.19254797,0.0001,2]
[323719964,1714193432165,-150.0,0.00010055,2]
[323719965,1714193432177,-655.6,0.00010083,2]
[323719966,1714193432189,-816.67,0.00010083,2]
[323719967,1714193432200,-655.6,0.00010086,2]
[323719968,1714193432210,-655.6,0.00010088,2]
[323719969,1714193432220,-655.6,0.00010091,2]
[323719970,1714193432230,-655.6,0.00010094,2]
[323719971,1714193432240,-463.93,0.00010094,2]
[323719972,1714193432250,-655.6,0.00010096,2]
[323719973,1714193432261,-655.6,0.00010099,2]
[323719974,1714193432272,-30000.0,0.000101,2]
[323719975,1714193432283,-655.6,0.00010102,2]
[323719976,1714193432294,-655.6,0.00010104,2]
[323719977,1714193432304,-655.6,0.00010107,2]
[323719978,1714193432315,-150.0,0.00010109,2]
[323719979,1714193432330,-655.6,0.0001011,2]
[323719980,1714193432341,-655.6,0.00010112,2]
[323719981,1714193432351,-655.6,0.00010115,2]
[323719982,1714193432363,-655.6,0.00010117,2]
[323719983,1714193432374,-655.6,0.0001012,2]
[323719984,1714193432385,-655.6,0.00010123,2]
[323719985,1714193432395,-655.6,0.00010125,2]
[323719986,1714193432407,-655.6,0.00010128,2]
[323719987,1714193432418,-655.6,0.00010131,2]
[323719988,1714193432429,-655.6,0.00010133,2]
[323719989,1714193432441,-800.0,0.00010667,2]
[323719990,1714193432452,-281.49,0.00010767,2]
[323719991,1714193432463,-335.64,0.0001079,2]
[323719992,1714193432474,-154.47,0.00010792,2]
[323719993,1714193432485,-184.14,0.00010794,2]
[323719994,1714193432496,-155.0,0.000109,2]
[323719995,1714193432508,-1803.49,0.00010959,3]
[323719996,1714193432519,-254.79426456,0.00011025,2]
[323719997,1714193432538,-4.41573544,0.00011025,2]
[323719998,1714193432550,-154.47,0.00011073,2]
[323719999,1714193432562,-154.47,0.00011354,2]
[323720000,1714193432573,-910.83,0.00011541,2]
[323720001,1714193432584,-350.59,0.00011671,2]
[323720002,1714193432596,-351.09,0.00011678,2]
[323720003,1714193432606,-350.59,0.00011678,2]
[323720004,1714193432621,-522.23,0.00011678,2]
[323720005,1714193432633,-522.23,0.00011678,2]
[323720006,1714193432643,-522.23,0.00011978,2]
[323720007,1714193432656,-150.0,0.00011978,2]
[323720008,1714193432667,-522.23,0.00011978,2]
[323720009,1714193432677,-350.59,0.00011978,2]
[323720010,1714193432689,-837.33,0.00011978,2]
[323720011,1714193432700,-150.0,0.00011978,2]
[323720012,1714193432711,-522.23,0.00011978,2]
[323720013,1714193432722,-150.0,0.00011978,2]
[323720014,1714193432732,-350.59,0.00011978,2]
[323720015,1714193432743,-350.59,0.00011978,2]
[323720016,1714193432753,-522.23,0.00011978,2]
[323720017,1714193432764,-522.23,0.00011978,2]
[323720018,1714193432775,-350.59,0.00011978,2]
[323720019,1714193432786,-350.59,0.00011978,2]
[323720020,1714193432798,-522.23,0.00011978,2]
[323720021,1714193432808,-525.27,0.00011978,2]
[323720022,1714193432821,-800.0,0.00012,2]
[323720023,1714193432832,-180.78,0.00012033,2]
[323720024,1714193432844,-150.0,0.00012051,2]
[323720025,1714193432855,-150.0,0.00012051,2]
[323720026,1714193432866,-281.49,0.00012113,2]
[323720027,1714193432877,-335.64,0.00012139,2]
[323720028,1714193432888,-576.0,0.00012328,2]
[323720029,1714193432898,-699.36,0.000124,2]
[323720030,1714193432909,-205.82,0.000124,2]
[323720031,1714193432920,-175.72397585,0.00012454,2]
[323720032,1714193432933,-2062.52012131,0.00012477,2]
[323720033,1714193432979,-913.00223051,0.00012477,2]
[323720034,1714193433008,-1803.49,0.00012477,2]
[323720035,1714193433022,-800.0,0.00012477,2]
[323720036,1714193433080,-281.8,0.00012477,2]
[323720061,1714193437875,-364.0,0.00012477,2]
[323720073,1714193437980,-1275.18764818,0.00012477,2]
[323720075,1714193437991,-14393.427,0.00012478,2]
[323720077,1714193438001,-1000.0,0.00012479,2]
[323720078,1714193438011,-432.2412,0.00012479,2]
[323720079,1714193438021,-44221.7426,0.00012479,2]
[323720080,1714193438030,-10000.0,0.0001248,2]
[323720081,1714193438039,-199.63681186,0.0001248,2]
[323720082,1714193438048,-179.25073921,0.0001248,2]
[323720083,1714193438058,-173.93618721,0.0001248,2]
[323720084,1714193438067,-3386.85209425,0.0001248,2]
[323720085,1714193438076,-682.37110967,0.0001248,2]
[323720086,1714193438085,-4285.70060187,0.0001248,2]
[323720087,1714193438094,-300.0,0.00012499,2]
[323720088,1714193438103,-150.0,0.00012508,2]
[323720089,1714193438112,-682.37110964,0.0001251,2]
[323720090,1714193438121,-150.0,0.00012513,2]
[323720091,1714193438130,-150.0,0.00012515,2]
[323720092,1714193438139,-150.0,0.00012518,2]
[323720093,1714193438148,-3386.85209421,0.00012518,2]
[323720094,1714193438157,-150.0,0.0001252,2]
[323720095,1714193438166,-1000.0,0.00012529,2]
[323720096,1714193438176,-500.0,0.00012529,2]
[323720097,1714193438185,-150.0,0.0001253,2]
[323720098,1714193438195,-150.0,0.00012531,2]
[323720099,1714193438204,-150.0,0.00012532,2]
[323720100,1714193438213,-286.23535766,0.00012536,2]
[323720101,1714193438222,-682.37110964,0.0001254,2]
[323720102,1714193438231,-150.0,0.00012542,2]
[323720103,1714193438240,-150.0,0.00012543,2]
[323720104,1714193438249,-300.0,0.00012545,2]
[323720105,1714193438258,-150.0,0.00012549,2]
[323720106,1714193438267,-150.0,0.00012552,2]
[323720107,1714193438276,-3386.85209421,0.00012556,2]
[323720108,1714193438286,-150.0,0.00012567,2]
[323720109,1714193438295,-150.0,0.00012569,2]
[323720110,1714193438305,-150.0,0.0001257,2]
[323720112,1714193438314,-682.37110964,0.0001257,2]
[323720114,1714193438322,-168.32649068,0.0001257,2]
[323720116,1714193438331,-160.54463975,0.00012575,2]
[323720118,1714193438340,-155.41962623,0.00012575,2]
[323720120,1714193438349,-445.31437047,0.00012575,2]
[323720122,1714193438358,-500.0,0.00012575,2]
[323720124,1714193438367,-549.82084026,0.00012575,2]
[323720126,1714193438376,-500.0,0.00012575,2]
[323720128,1714193438385,-325.95290901,0.00012576,2]
[323720130,1714193438394,-2905.68765111,0.00012576,2]
[323720132,1714193438403,-341.79005663,0.00012576,2]
[323720134,1714193438412,-594.69304894,0.00012576,2]
[323720135,1714193438422,-237.74034945,0.00012576,2]
[323720137,1714193438432,-255.90576698,0.00012576,2]
[323720139,1714193438442,-155.17958584,0.00012576,2]
[323720141,1714193438451,-155.27842674,0.00012576,2]
[323720143,1714193438462,-504.83016045,0.00012576,2]
[323720145,1714193438470,-500.0,0.00012576,2]
[323720147,1714193438480,-334.23819897,0.00012576,2]
[323720149,1714193438489,-500.0,0.00012576,2]
[323720151,1714193438499,-500.0,0.00012576,2]
[323720153,1714193438509,-500.0,0.00012576,2]
[323720155,1714193438520,-383.68,0.00012576,2]
[323720157,1714193438530,-189.21334405,0.00012576,2]
[323720159,1714193438539,-511.06844343,0.00012576,2]
[323720161,1714193438549,-500.0,0.00012576,2]
[323720163,1714193438560,-500.0,0.00012576,2]
[323720165,1714193438572,-500.0,0.00012576,2]
[323720167,1714193438582,-513.18248663,0.00012576,2]
[323720168,1714193438592,-510.08074905,0.00012576,2]
[323720169,1714193438602,-503.55786252,0.00012576,2]
[323720170,1714193438615,-421.33041221,0.00012576,2]
[323720171,1714193438624,-631.81506678,0.00012576,2]
[323720172,1714193438635,-512.65281903,0.00012576,2]
[323720173,1714193438646,-513.06040431,0.00012576,2]
[323720174,1714193438658,-500.0,0.00012576,2]
[323720175,1714193438669,-500.0,0.00012576,2]
[323720176,1714193438681,-500.0,0.00012576,2]
[323720177,1714193438693,-500.0,0.00012576,2]
[323720178,1714193438703,-174.78405316,0.00012576,2]
[323720179,1714193438714,-500.0,0.00012576,2]
[323720180,1714193438724,-500.0,0.00012576,2]
[323720181,1714193438736,-631.62,0.00012576,2]
[323720182,1714193438747,-500.0,0.00012576,2]
[323720183,1714193438756,-500.0,0.00012576,2]
[323720184,1714193438767,-502.07141059,0.00012576,2]
[323720185,1714193438777,-500.0,0.00012576,2]
[323720186,1714193438786,-500.0,0.00012576,2]
[323720187,1714193438796,-500.0,0.00012576,2]
[323720188,1714193438807,-500.0,0.00012576,2]
[323720189,1714193438816,-500.0,0.00012576,2]
[323720190,1714193438825,-500.0,0.00012576,2]
[323720191,1714193438835,-500.0,0.00012576,2]
[323720192,1714193438844,-564.43052135,0.00012576,2]
[323720193,1714193438853,-526.58242962,0.00012576,2]
[323720194,1714193438862,-504.72259777,0.00012576,2]
[323720195,1714193438872,-505.08520797,0.00012576,2]
[323720196,1714193438881,-461.81114163,0.00012576,2]
[323720197,1714193438891,-500.0,0.00012576,2]
[323720198,1714193438901,-500.0,0.00012576,2]
[323720199,1714193438911,-500.0,0.00012576,2]
[323720200,1714193438921,-500.0,0.00012576,2]
[323720201,1714193438931,-208.71244287,0.00012576,2]
[323720202,1714193438941,-500.0,0.00012576,2]
[323720203,1714193438951,-1110.63,0.00012576,2]
[323720204,1714193438962,-500.0,0.00012576,2]
[323720205,1714193438974,-500.0,0.00012576,2]
[323720206,1714193438984,-500.0,0.00012576,2]
[323720207,1714193438994,-500.0,0.00012576,2]
[323720208,1714193439003,-500.0,0.00012576,2]
[323720209,1714193439013,-743.5,0.00012576,2]
[323720210,1714193439024,-500.0,0.00012576,2]
[323720211,1714193439034,-500.0,0.00012576,2]
[323720212,1714193439044,-500.0,0.00012576,2]
[323720213,1714193439055,-500.0,0.00012576,2]
[323720214,1714193439066,-500.0,0.00012576,2]
[323720215,1714193439077,-937.4,0.00012576,2]
[323720216,1714193439087,-500.0,0.00012576,2]
[323720217,1714193439097,-500.0,0.00012576,2]
[323720218,1714193439107,-500.0,0.00012576,2]
[323720219,1714193439118,-500.0,0.00012576,2]
[323720220,1714193439127,-500.0,0.00012576,2]
[323720221,1714193439137,-500.0,0.00012576,2]
[323720222,1714193439146,-1648.92,0.00012576,2]
[323720223,1714193439157,-500.0,0.00012576,2]
[323720224,1714193439166,-500.0,0.00012576,2]
[323720225,1714193439177,-500.0,0.00012576,2]
[323720226,1714193439188,-500.0,0.00012576,2]
[323720227,1714193439198,-500.0,0.00012576,2]
[323720228,1714193439208,-500.0,0.00012576,2]
[323720229,1714193439218,-500.0,0.00012576,2]
[323720230,1714193439227,-500.0,0.00012576,2]
[323720231,1714193439237,-500.0,0.00012576,2]
[323720232,1714193439247,-500.0,0.00012576,2]
[323720233,1714193439256,-860.54,0.00012576,2]
[323720234,1714193439266,-500.0,0.00012576,2]
[323720235,1714193439275,-500.0,0.00012576,2]
[323720236,1714193439285,-791.29,0.00012576,2]
[323720237,1714193439295,-500.0,0.00012576,2]
[323720238,1714193439305,-500.0,0.00012576,2]
[323720239,1714193439314,-500.0,0.00012576,2]
[323720240,1714193439323,-500.0,0.00012576,2]
[323720241,1714193439333,-588.76,0.00012576,2]
[323720242,1714193439344,-500.0,0.00012576,2]
[323720243,1714193439354,-500.0,0.00012576,2]
[323720244,1714193439363,-1297.6,0.00012576,2]
[323720245,1714193439373,-500.0,0.00012576,2]
[323720246,1714193439382,-500.0,0.00012576,2]
[323720247,1714193439391,-500.0,0.00012576,2]
[323720248,1714193439401,-500.0,0.00012576,2]
[323720249,1714193439411,-500.0,0.00012576,2]
[323720250,1714193439421,-500.0,0.00012576,2]
[323720251,1714193439430,-500.0,0.00012576,2]
[323720252,1714193439440,-500.0,0.00012576,2]
[323720253,1714193439450,-728.45,0.00012576,2]
[323720254,1714193439459,-1236.44,0.00012576,2]
[323720255,1714193439468,-500.0,0.00012576,2]
[323720256,1714193439478,-500.0,0.00012576,2]
[323720257,1714193439488,-500.0,0.00012576,2]
[323720258,1714193439498,-557.58,0.00012576,2]
[323720259,1714193439507,-1365.45,0.00012576,2]
[323720260,1714193439516,-500.0,0.00012576,2]
[323720261,1714193439525,-1309.18,0.00012576,2]
[323720262,1714193439536,-500.0,0.00012576,2]
[323720263,1714193439546,-500.0,0.00012576,2]
[323720264,1714193439557,-1117.66,0.00012576,2]
[323720265,1714193439567,-1167.41,0.00012576,2]
[323720266,1714193439578,-500.0,0.00012576,2]
[323720267,1714193439590,-500.0,0.00012576,2]
[323720268,1714193439600,-500.0,0.00012576,2]
[323720269,1714193439615,-2514.72,0.00012576,2]
[323720270,1714193439627,-500.0,0.00012576,2]
[323720271,1714193439640,-795.21,0.00012576,2]
[323720272,1714193439652,-500.0,0.00012576,2]
[323720273,1714193439662,-826.14,0.00012576,2]
[323720274,1714193439672,-1802.74,0.00012576,2]
[323720275,1714193439684,-500.0,0.00012576,2]
[323720276,1714193439694,-881.84,0.00012576,2]
[323720277,1714193439705,-500.0,0.00012576,2]
[323720278,1714193439717,-500.0,0.00012576,2]
[323720279,1714193439728,-500.0,0.00012576,2]
[323720280,1714193439740,-500.0,0.00012576,2]
[323720281,1714193439752,-500.0,0.00012576,2]
[323720282,1714193439763,-500.0,0.00012576,2]
[323720283,1714193439774,-500.0,0.00012576,2]
[323720285,1714193439785,-500.0,0.00012576,2]
[323720287,1714193439795,-500.0,0.00012576,2]
[323720289,1714193439807,-4945.95,0.00012576,2]
[323720291,1714193439816,-500.0,0.00012576,2]
[323720293,1714193439826,-500.0,0.00012576,2]
[323720295,1714193439836,-500.0,0.00012576,2]
[323720297,1714193439846,-636.72,0.00012576,2]
[323720299,1714193439855,-500.0,0.00012576,2]
[323720301,1714193439865,-167.21704769,0.00012577,2]
[323720302,1714193439874,-500.0,0.00012577,2]
[323720304,1714193439884,-500.0,0.00012577,2]
[323720306,1714193439893,-502.3488869,0.00012577,2]
[323720308,1714193439902,-557.92167105,0.00012577,2]
[323720310,1714193439912,-500.0,0.00012577,2]
[323720311,1714193439922,-501.83704293,0.00012577,2]
[323720312,1714193439933,-498.08063201,0.00012577,2]
[323720313,1714193439943,-500.0,0.00012577,2]
[323720314,1714193439955,-175.87367961,0.00012577,2]
[323720315,1714193439966,-224.81803556,0.00012577,2]
[323720316,1714193439977,-500.0,0.00012577,2]
[323720317,1714193439988,-426.24779569,0.00012577,2]
[323720318,1714193439998,-505.5523982,0.00012577,2]
[323720319,1714193440009,-431.49167114,0.00012577,2]
[323720320,1714193440018,-505.38312737,0.00012577,2]
[323720321,1714193440029,-629.88522196,0.00012577,2]
[323720322,1714193440040,-500.0,0.00012577,2]
[323720323,1714193440050,-500.0,0.00012577,2]
[323720324,1714193440061,-150.32298959,0.00012577,2]
[323720325,1714193440072,-500.0,0.00012577,2]
[323720326,1714193440083,-192.83624308,0.00012577,2]
[323720327,1714193440093,-454.49715313,0.00012577,2]
[323720328,1714193440103,-500.0,0.00012577,2]
[323720329,1714193440113,-500.0,0.00012577,2]
[323720330,1714193440124,-406.95079091,0.00012577,2]
[323720331,1714193440134,-263.4,0.00012577,2]
[323720332,1714193440145,-604.81981001,0.00012577,2]
[323720333,1714193440156,-500.0,0.00012577,2]
[323720334,1714193440165,-500.0,0.00012577,2]
[323720335,1714193440176,-500.0,0.00012577,2]
[323720336,1714193440187,-422.40043323,0.00012577,2]
[323720337,1714193440196,-538.17554806,0.00012577,2]
[323720338,1714193440206,-459.75249824,0.00012577,2]
[323720339,1714193440216,-500.0,0.00012577,2]
[323720340,1714193440226,-500.0,0.00012577,2]
[323720341,1714193440236,-157.15143591,0.00012577,2]
[323720342,1714193440252,-346.60347117,0.00012577,2]
[323720343,1714193440262,-500.0,0.00012577,2]
[323720344,1714193440272,-142.12012883,0.00012577,2]
[323720345,1714193440284,-357.87987117,0.00012577,2]
[323720346,1714193440293,-500.0,0.00012577,2]
[323720347,1714193440303,-500.0,0.00012577,2]
[323720348,1714193440313,-500.0,0.00012577,2]
[323720349,1714193440323,-500.0,0.00012577,2]
[323720350,1714193440332,-500.0,0.00012577,2]
[323720351,1714193440342,-284.07571365,0.00012577,2]
[323720352,1714193440352,-500.0,0.00012577,2]
[323720353,1714193440362,-500.0,0.00012577,2]
[323720354,1714193440372,-500.0,0.00012577,2]
[323720355,1714193440382,-274.11765847,0.00012577,2]
[323720356,1714193440391,-163.95146742,0.00012577,2]
[323720357,1714193440404,-336.04853258,0.00012577,2]
[323720358,1714193440415,-202.95529886,0.00012577,2]
[323720361,1714193440427,-297.04470114,0.00012577,2]
[323720362,1714193440436,-215.07941457,0.00012577,2]
[323720363,1714193440448,-312.45323166,0.00012577,2]
[323720364,1714193440458,-63.13280605,0.00012577,2]
[323720365,1714193440470,-436.86719395,0.00012577,2]
[323720366,1714193440480,-443.41169343,0.00012577,2]
[323720367,1714193440489,-500.0,0.00012577,2]
[323720368,1714193440498,-512.21295909,0.00012577,2]